[Event "12th WLC Weekend 2022"]
[Site "Eindhoven"]
[Date "2022.05.14"]
[Round "2.5"]
[White "Ciornei, Dragos"]
[Black "Van Roon, Sjoerd"]
[Result "0-1"]
[ECO "B33"]
[WhiteElo "2164"]
[BlackElo "2264"]
[Annotator "TA"]
[PlyCount "60"]
[EventDate "2022.05.13"]
[EventType "swiss"]
[EventCountry "NED"]
[SourceTitle "playchess.com"]
[Source "ChessBase"]
[SourceQuality "1"]
[TimeControl "5400+30"]

{[%evp 33,60,20,45,35,65,53,110,0,0,-106,-18,-284,-211,-225,-220,-516,-497,-1612,-1592,-1168,-2776,-1809,-1613,-29992,-29992,-29995,-29996,-29997,-29992]} 1. e4 {[%emt 0:00:07]} c5 {[%emt 0:00:03]} 2. Nf3 {[%emt 0:00:25][%cal Bg1f3,Bf3d4,Bd4b5,Bb5a3,Ba3c2,Bc2e3][%mdl 32]} Nc6 {[%emt 0:00:03]} 3. d4 {[%emt 0:00:37]} cxd4 {[%emt 0:00:05]} 4. Nxd4 {[%emt 0:00:21]} Nf6 {[%emt 0:00:06]} 5. Nc3 {[%emt 0:00:22]} e5 {[%emt 0:00:06]} 6. Ndb5 {[%emt 0:00:35]} d6 {[%emt 0:00:07]} 7. Bg5 {[%emt 0:00:34]} a6 {[%emt 0:00:05]} 8. Na3 {[%emt 0:00:21]} b5 {[%emt 0:00:06]} 9. Bxf6 {[%emt 0:00:34]} gxf6 {[%emt 0:00:44]} 10. Nd5 {[%emt 0:00:16]} f5 {[%emt 0:00:30]} 11. exf5 {[%emt 0:01:09]} Bxf5 {[%emt 0:02:38]} 12. c3 {[%emt 0:01:17]} Bg7 {[%emt 0:02:32]} 13. Nc2 {[%emt 0:01:33]} O-O {[%emt 0:01:42]} 14. Nce3 {[%emt 0:00:28]} Be6 {[%emt 0:02:12]} 15. Bd3 {[%emt 0:01:17]} f5 {[%emt 0:05:21]} 16. Qh5 {[%emt 0:00:49]} e4 {[%emt 0:06:45]} 17. Bc2 {[%emt 0:02:50]} Ne5 {[%emt 0:07:06]} 18. Nf4 {[%emt 0:06:16] Pair of Knights! B33: Sicilian: Pelikan and Sveshnikov Variations.} Qd7 {[%emt 0:04:39]} 19. O-O {[%emt 0:09:20]} Rf6 {[%emt 0:01:36] [#]} (19... Kh8 $14) 20. Rfd1 $146 {[%emt 0:15:19]} (20. Bb3 $16 Bxb3 21. axb3) ({Predecessor:} 20. Bb3 Nc4 21. a4 Rd8 22. axb5 axb5 23. Nxe6 Qxe6 24. Ra5 d5 25. Rxb5 Nxe3 26. fxe3 {0-1 (59) Chojnacki,K (2432)-Korennoi,V (2223) Wroclaw 2009}) 20... Kh8 $11 {[%emt 0:02:53]} 21. Qe2 {[%emt 0:09:53]} (21. Bb3 $11 {remains equal.} Bg8 22. h3) 21... Rh6 {[%emt 0:15:38]} (21... Bc4 $17 22. Nxc4 Nxc4) 22. a4 $2 {[%emt 0:10:55][%mdl 8192] Now White is beyond hope.} (22. Nxe6 $11 {and White is okay.} Qxe6 {[#]} 23. Nxf5 $1 Qxf5 24. Bxe4) 22... Bc4 {[%emt 0:09:34]} 23. Nxc4 {[%emt 0:08:38]} bxc4 {[%emt 0:00:06]} 24. b3 $2 {[%emt 0:01:38]} (24. Kh1) 24... Rg8 $19 {[%emt 0:01:30]} 25. bxc4 {[%emt 0:04:25] [#]} (25. Kh1 $142 Ng4 26. h3) 25... Nf3+ $1 {[%emt 0:00:47][%mdl 576] Discovered Attack, Clearance} 26. gxf3 {[%emt 0:03:04]} (26. Qxf3 exf3) 26... Be5+ {[%emt 0:00:11][%mdl 64] Discovered Attack} 27. Kf1 {[%emt 0:01:27]} Bxf4 {[%emt 0:00:34]} 28. c5 {[%emt 0:06:04]} Rxh2 {[%emt 0:01:04][%cal Rh2h1] Black mates.} 29. Qc4 {[%emt 0:01:49] [#]} exf3 $1 {[%emt 0:00:11][%cal Rh2h1]} 30. Qd4+ {[%emt 0:01:53]} (30. Qxg8+ Kxg8) 30... Be5 {[%emt 0:00:09] Weighted Error Value: White=1.33/Black=0.22 (precise)} 0-1

[Event "12th WLC Weekend 2022"]
[Site "Eindhoven"]
[Date "2022.05.14"]
[Round "2.6"]
[White "Baselmans, Sam"]
[Black "Becx, Cesar"]
[Result "1/2-1/2"]
[ECO "C55"]
[WhiteElo "2175"]
[BlackElo "2101"]
[Annotator "TA"]
[PlyCount "113"]
[EventDate "2022.05.13"]
[EventType "swiss"]
[EventCountry "NED"]
[SourceTitle "playchess.com"]
[Source "ChessBase"]
[SourceQuality "1"]
[TimeControl "5400+30"]

{[%evp 13,113,45,47,45,44,45,50,39,40,43,40,39,48,50,41,56,40,62,64,38,45,37,121,123,126,84,109,79,164,156,198,166,188,151,303,22,27,39,150,11,11,11,11,11,11,11,11,11,11,11,11,11,11,11,16,11,18,16,26,26,26,26,50,50,50,50,50,37,42,50,50,50,50,37,37,16,16,0,50,37,50,50,50,24,37,24,50,37,37,29,5105,0,0,0,0,0,0,0,0,0,0,0]} 1. e4 {[%emt 0:00:03]} e5 {[%emt 0:00:15]} 2. Nf3 {[%emt 0:00:07]} Nc6 {[%emt 0:00:16]} 3. Bc4 {[%emt 0:00:12]} Nf6 {[%emt 0:00:15]} 4. d3 {[%emt 0:00:05]} Be7 {[%emt 0:00:11]} 5. O-O {[%emt 0:00:07]} O-O {[%emt 0:00:09]} 6. Re1 {[%emt 0:00:08]} d6 {[%emt 0:00:29]} 7. a4 {[%emt 0:00:11]} Kh8 {[%emt 0:03:34]} 8. a5 {[%emt 0:00:27] C55: Two Knights: 4 d3, 4 d4 exd4 5 e5 and Max Lange Attack.} a6 {[%emt 0:00:49]} 9. h3 {[%emt 0:02:35] [#] Recently 9.Nc3 got a lot of attention.} Qe8 $146 {[%emt 0:10:40]} ({Predecessor:} 9... Ng8 10. Nc3 f5 11. Nd5 Nf6 12. c3 Nxd5 13. Bxd5 Bf6 14. b4 Qe8 15. Ra2 Ne7 {1-0 (62) Jumabayev,R (2646)-Moiseenko,V (2526) Moscow 2019}) 10. Nc3 {[%emt 0:06:22] White is slightly better.} Be6 {[%emt 0:05:28]} 11. Nd5 {[%emt 0:04:40]} Bd8 {[%emt 0:02:46]} 12. c3 {[%emt 0:03:03]} Nd7 {[%emt 0:05:30]} 13. Ng5 {[%emt 0:04:38]} Nxa5 {[%emt 0:12:25]} 14. Rxa5 {[%emt 0:43:56] Hoping for Qh5.} c6 {[%emt 0:00:28][%csl LRa5,LRd5] [#]} 15. Ra1 {[%emt 0:02:29][%cal Od1h5]} cxd5 {[%emt 0:09:10]} 16. Nxe6 $40 {[%emt 0:01:15][%mdl 128] White attacks.} fxe6 {[%emt 0:00:18]} 17. exd5 {[%emt 0:00:06]} Qf7 {[%emt 0:18:42]} (17... Nf6 $14) 18. dxe6 $16 {[%emt 0:05:46] Active counter play!} Qxf2+ {[%emt 0:00:16]} 19. Kh1 {[%emt 0:00:03]} Nf6 {[%emt 0:01:44]} 20. Rf1 {[%emt 0:04:40]} Qh4 {[%emt 0:09:25] [#]} (20... Qc5 $16) 21. Bd5 $1 {[%emt 0:00:24][%mdl 512]} Be7 {[%emt 0:01:55]} (21... Bb6 22. Bxb7) 22. Bxb7 {[%emt 0:02:41]} Rab8 {[%emt 0:12:38]} 23. Ra4 {[%emt 0:01:16]} e4 $2 {[%emt 0:00:45]} (23... Qg3 $16) 24. Rf4 $2 {[%emt 0:04:07]} (24. Bxa6 Ng4 25. Kg1 (25. Rxe4 Nf2+ 26. Rxf2 Qxf2 $11) (25. Rxf8+ $2 Rxf8 26. Rxe4 Nf2+ 27. Kg1 Qxe4 $19) 25... Rxf1+ 26. Qxf1 Rf8 $11) (24. Bxe4 $18 {Strongly threatening Bf3.} Nxe4 25. Rxe4 Rxf1+ 26. Qxf1) 24... Qg3 $11 {[%emt 0:02:45]} 25. Bxe4 {[%emt 0:01:07] Black must now prevent Bf5.} Rxb2 {[%emt 0:00:07]} (25... d5 $1 $14 26. Bf5 (26. Rf3 Nxe4 27. Rxg3 Nf2+ 28. Kh2 Nxd1 $17) 26... Bd6) 26. Rxf6 {[%emt 0:01:17]} (26. Rxa6 Nxe4 27. Bxb2 (27. Rxf8+ $2 Bxf8 28. Qf3 Nf2+ 29. Kg1 Nxh3+ 30. Kh1 Qe1+ 31. Kh2 Rf2 $19) 27... Qxf4 28. dxe4 Qxe4 $11) ({White should try} 26. Bxb2 $16 Qxf4 27. Bf3) 26... Bxf6 {[%emt 0:00:15]} 27. e7 $1 {[%emt 0:02:30] Really sharp!} (27. Bxb2 $2 {is a self mate.} Be5 28. Qg1 Rf1 $3 {[%mdl 512]} 29. Qxf1 Qh2#) 27... Bxe7 {[%emt 0:00:13] Threatens to win with ...Rbf2.} 28. Bxb2 {[%emt 0:00:34] A strong pair of Bishops.} d5 $1 {[%emt 0:00:03] ( -> ...Bd6)} 29. Ba3 {[%emt 0:06:33]} (29. Bxd5 {leads to mate.} Bd6) 29... Bxa3 {[%emt 0:02:01]} 30. Rxa3 {[%emt 0:00:05]} dxe4 {[%emt 0:00:22]} 31. dxe4 {[%emt 0:00:06][%mdl 4096] Endgame KQR-KQR} h6 {[%emt 0:00:59]} 32. Rxa6 {[%emt 0:00:20]} Qxc3 {[%emt 0:00:37]} 33. Ra2 {[%emt 0:01:36]} Qf6 {[%emt 0:00:58]} 34. Re2 {[%emt 0:00:54]} Re8 {[%emt 0:00:08]} 35. Qd3 {[%emt 0:00:27]} Qa1+ {[%emt 0:00:15]} 36. Kh2 {[%emt 0:00:06]} Qe5+ {[%emt 0:00:36]} 37. Qg3 {[%emt 0:00:10]} Qb5 {[%emt 0:00:21]} 38. Re3 {[%emt 0:00:31]} Re5 {[%emt 0:00:09]} 39. Qf4 {[%emt 0:00:20]} Qc5 {[%emt 0:00:35]} 40. Rd3 {[%emt 0:01:06]} Qe7 {[%emt 0:00:10]} 41. Rd7 {[%emt 0:00:59]} Qe6 {[%emt 0:01:39]} (41... Rxe4 $2 42. Qb8+ (42. Rxe7 Rxf4 43. g4 Rb4 $11) 42... Kh7 43. Rxe7 $18) 42. Rd4 {[%emt 0:01:07]} Kg8 {[%emt 0:00:25]} 43. Ra4 {[%emt 0:00:50]} Kh7 {[%emt 0:00:17]} 44. Qg3 {[%emt 0:00:53]} Rg5 {[%emt 0:00:36]} 45. Qf4 {[%emt 0:00:30]} (45. Qf2 {keeps more tension.} Qe8 46. Rc4 Qb5 47. Qc2) 45... Re5 {[%emt 0:00:07]} 46. Rb4 {[%emt 0:00:39]} Kg8 {[%emt 0:00:21]} 47. Rd4 {[%emt 0:01:06]} Kh7 {[%emt 0:00:08]} 48. Qf3 {[%emt 0:00:14]} Qe7 {[%emt 0:00:35]} 49. Qd3 {[%emt 0:00:20]} Kg8 {[%emt 0:01:21]} 50. Rd8+ {[%emt 0:00:19]} Kh7 {[%emt 0:00:06]} 51. Rd5 {[%emt 0:00:13]} Rxe4 $2 {[%emt 0:00:11][%mdl 8192] [#]} (51... h5 $11) 52. g3 $2 {[%emt 0:00:51]} (52. Kh1 $1 $18 {White threatens Rd4 and mate.} Kg8 53. Rd8+ Kf7 54. Rd7) 52... Kg8 {[%emt 0:00:37] The position is equal.} 53. Rd8+ {[%emt 0:00:07]} Kf7 $1 {[%emt 0:01:02]} 54. Rd7 {[%emt 0:01:15]} Re2+ {[%emt 0:00:03]} 55. Kg1 {[%emt 0:00:05]} Re1+ {[%emt 0:00:04]} 56. Kf2 {[%emt 0:00:11]} Re2+ {[%emt 0:00:04]} 57. Kf1 {[%emt 0:00:32] Weighted Error Value: White=0.32/Black=0.17 (very precise)} 1/2-1/2

[Event "12th WLC Weekend 2022"]
[Site "Eindhoven"]
[Date "2022.05.14"]
[Round "2.7"]
[White "Boeren, Jurriaan"]
[Black "Iolis, Oleg"]
[Result "1/2-1/2"]
[ECO "B90"]
[WhiteElo "1778"]
[BlackElo "2201"]
[Annotator "TA"]
[PlyCount "127"]
[EventDate "2022.05.13"]
[EventType "swiss"]
[EventCountry "NED"]
[SourceTitle "playchess.com"]
[Source "ChessBase"]
[SourceQuality "1"]
[TimeControl "5400+30"]

{[%evp 12,127,15,7,30,24,20,0,0,0,0,0,15,0,0,0,23,11,24,16,16,0,45,0,0,-29,0,-15,-21,-22,0,-10,0,-14,20,0,0,0,10,0,27,0,0,0,0,-37,0,0,0,-18,36,38,41,47,51,70,77,0,0,1,39,13,8,11,11,-131,0,0,0,-20,-16,-39,0,0,0,0,0,0,0,0,0,0,0,-39,-42,-39,-42,-42,-42,-42,-42,-42,-42,-44,-44,-59,-59,-59,-59,-59,-59,-59,-59,-59,-59,-59,-59,-59,-59,-59,-59,-59,-59,-59,-59,-197,-197,-398]} 1. e4 {[%emt 0:00:02]} c5 {[%emt 0:00:03]} 2. Nf3 {[%emt 0:00:05]} d6 {[%emt 0:00:05]} 3. d4 {[%emt 0:00:03]} cxd4 {[%emt 0:00:03]} 4. Nxd4 {[%emt 0:00:05]} Nf6 {[%emt 0:00:03]} 5. Nc3 {[%emt 0:00:03]} a6 {[%emt 0:00:03]} 6. h3 {[%emt 0:00:05]} e5 {[%emt 0:00:24] The main line 6...e5 scores better than 6...e6.} 7. Nde2 {[%emt 0:00:08]} h5 {[%emt 0:00:21] B90: Sicilian Najdorf: Unusual White 6th moves, 6 Be3 Ng4 and 6 Be3 e5.} 8. Bg5 {[%emt 0:00:15]} Be6 {[%emt 0:02:38]} 9. Bxf6 {[%emt 0:00:30]} Qxf6 {[%emt 0:00:05] The position is equal.} 10. Nd5 {[%emt 0:00:10]} Qd8 {[%emt 0:00:07]} 11. Qd3 {[%emt 0:00:05]} g6 {[%emt 0:04:59]} 12. O-O-O {[%emt 0:00:35]} Nd7 {[%emt 0:00:54]} 13. Kb1 {[%emt 0:06:37]} Rc8 {[%emt 0:02:48]} 14. Nec3 {[%emt 0:11:27]} Nc5 {[%emt 0:13:06]} 15. Qf3 {[%emt 0:03:01]} Bg7 {[%emt 0:00:29] Prevents Nf6+.} 16. Be2 {[%emt 0:09:16]} O-O {[%emt 0:04:42] [#]} 17. g4 $146 {[%emt 0:05:30]} ({Predecessor:} 17. Ne3 b5 18. Ncd5 Bxd5 19. Nxd5 Ne6 20. c3 Nc7 21. g4 h4 22. Nxc7 Rxc7 23. Qe3 {0-1 (72) Gu,T (2180)-Song,Y (1912) Tianjin 2019}) 17... h4 {[%emt 0:01:14]} 18. Rhg1 {[%emt 0:07:33]} Qg5 {[%emt 0:09:00]} 19. Ne3 {[%emt 0:12:13]} (19. Qe3 $5 {[%cal Re3g5]} Bh6 20. a3 $11) 19... Rfd8 {[%emt 0:02:21]} 20. Nf5 {[%emt 0:06:00]} Bf8 {[%emt 0:03:18]} (20... gxf5 $2 21. gxf5 Qf6 22. Qh5 $18 (22. fxe6 Qxf3 23. Bxf3 fxe6 $16)) (20... b5 $5 {[%cal Rb5b4]}) 21. Qe3 {[%emt 0:10:36]} Qxe3 {[%emt 0:00:40]} 22. Nxe3 {[%emt 0:00:07]} b5 {[%emt 0:03:09]} 23. a3 {[%emt 0:02:03]} Rb8 {[%emt 0:08:05]} 24. b4 {[%emt 0:01:36]} Nd7 {[%emt 0:00:47]} 25. Ncd5 {[%emt 0:06:29] Against Be7} Rdc8 {[%emt 0:02:36]} 26. g5 {[%emt 0:03:14][%cal Og1g4]} Nb6 {[%emt 0:02:17]} 27. Nxb6 {[%emt 0:01:26]} Rxb6 {[%emt 0:00:03]} 28. Bg4 {[%emt 0:00:35]} a5 {[%emt 0:02:01]} 29. Nd5 {[%emt 0:01:00]} Ra6 {[%emt 0:02:45]} 30. Kb2 {[%emt 0:02:13]} Rc4 {[%emt 0:01:16]} (30... axb4 $11 31. Nxb4 Ra4) 31. Be2 $14 {[%emt 0:00:19]} Bxd5 {[%emt 0:03:11]} 32. Rxd5 {[%emt 0:00:58]} Rxe4 {[%emt 0:01:49]} 33. Bxb5 {[%emt 0:00:53]} Ra7 {[%emt 0:00:31]} 34. c3 {[%emt 0:04:38]} (34. Bd3 $16 Rf4 35. Rxa5) 34... Rf4 {[%emt 0:00:31]} 35. Rf1 {[%emt 0:00:59]} e4 {[%emt 0:07:21]} 36. Be2 {[%emt 0:01:42]} axb4 {[%emt 0:00:24]} 37. axb4 {[%emt 0:00:52]} Bg7 {[%emt 0:05:32]} 38. Rxd6 {[%emt 0:01:56] [#]} (38. Kb3 $1 $11) 38... e3 {[%emt 0:00:06]} (38... Rc7 $1 $17 {[%cal Rc7c3]} 39. Rc1 (39. Rd8+ $2 Kh7 $17) 39... Rxf2 40. Rd8+ Kh7) 39. Rd8+ $11 {[%emt 0:01:04]} ({Not} 39. fxe3 $2 Rxb4+ 40. Kc1 (40. Kc2 $2 Ra2+ 41. Kc1 Bxc3 $19) 40... Ra1+ 41. Kc2 Ra2+ 42. Kc1 Bxc3 $19) 39... Kh7 {[%emt 0:00:11] White must now prevent ...Rxb4+.} 40. Kb3 {[%emt 0:01:47]} (40. fxe3 $5 {[%cal Rf1f4]} Rxb4+ 41. Kc2 $11) 40... exf2 {[%emt 0:01:26]} 41. Bg4 {[%emt 0:00:53]} Re7 {[%emt 0:00:44] ...Re3 is the strong threat.} (41... Rc7 $5 {[%cal Rc7c3]} 42. Rd3 Be5 $15) 42. Rd2 {[%emt 0:00:45]} Re3 {[%emt 0:00:48]} 43. Rdxf2 {[%emt 0:00:21]} Rxc3+ {[%emt 0:00:37]} 44. Ka4 {[%emt 0:00:20]} Rxf2 {[%emt 0:01:58]} 45. Rxf2 {[%emt 0:00:01][%mdl 4096] Endgame KRB-KRB} Kg8 {[%emt 0:00:04]} 46. Rf4 {[%emt 0:01:59]} Bf8 {[%emt 0:00:36]} 47. Kb5 {[%emt 0:00:43]} Be7 {[%emt 0:00:16]} 48. Rc4 {[%emt 0:00:40]} Re3 {[%emt 0:01:29]} 49. Rc8+ {[%emt 0:00:33]} Kg7 {[%emt 0:00:14]} 50. Re8 {[%emt 0:00:15]} Bxg5 {[%emt 0:01:23]} 51. Rxe3 {[%emt 0:00:05]} Bxe3 $15 {[%emt 0:00:02] KB-KB} 52. Kc4 {[%emt 0:00:12]} f5 {[%emt 0:00:16]} 53. Bf3 {[%emt 0:00:13]} Kf6 {[%emt 0:00:09] [#] aiming for ...Ke5.} 54. Kd3 {[%emt 0:00:07]} Bb6 {[%emt 0:00:14] Hoping for ...Kg5.} 55. Ke2 $1 {[%emt 0:00:49]} Ke5 {[%emt 0:00:05] And now ...Kf4 would win.} 56. Kf1 $1 {[%emt 0:00:16]} Kf4 {[%emt 0:00:50]} 57. Kg2 {[%emt 0:00:07]} Ke3 {[%emt 0:00:24]} 58. Bd1 {[%emt 0:00:16]} g5 {[%emt 0:00:55]} 59. Bh5 {[%emt 0:00:14]} Bd8 {[%emt 0:01:05]} 60. Bd1 {[%emt 0:00:55]} Kf4 {[%emt 0:03:14]} 61. Bh5 {[%emt 0:00:14]} Bc7 {[%emt 0:00:23]} 62. Bd1 {[%emt 0:00:17]} g4 {[%emt 0:01:45]} 63. hxg4 {[%emt 0:00:17]} (63. b5 $15) 63... fxg4 $19 {[%emt 0:00:03] ( -> ...h3+)} 64. Bxg4 $2 {[%emt 0:00:09][%mdl 32768] Weighted Error Value: White=0.15 (very precise) /Black=0.10 (very precise) . An unexpected result.} (64. Be2 {keeps fighting.}) 1/2-1/2

[Event "12th WLC Weekend 2022"]
[Site "Eindhoven"]
[Date "2022.05.14"]
[Round "2.8"]
[White "Jansen, Bob"]
[Black "Van der Velden, Alain"]
[Result "1-0"]
[ECO "A80"]
[WhiteElo "2174"]
[BlackElo "1659"]
[Annotator "TA"]
[PlyCount "45"]
[EventDate "2022.05.13"]
[EventType "swiss"]
[EventCountry "NED"]
[SourceTitle "playchess.com"]
[Source "ChessBase"]
[SourceQuality "1"]
[TimeControl "5400+30"]

{[%evp 9,45,41,35,6,23,13,25,14,30,37,234,231,336,322,354,358,518,510,446,450,427,313,422,418,566,572,641,647,2259,2202,29990,29991,29991,29987,29987,450,414,-1154]} 1. d4 {[%emt 0:00:28]} f5 {[%emt 0:00:05]} 2. Bg5 {[%emt 0:01:06]} g6 {[%emt 0:00:05]} 3. Nc3 {[%emt 0:00:16]} Bg7 {[%emt 0:00:10]} 4. h4 {[%emt 0:00:25]} h6 {[%emt 0:00:05]} 5. Bf4 {[%emt 0:00:04]} Nf6 {[%emt 0:00:07]} 6. e3 {[%emt 0:00:16] A80: Dutch Defence: Unusual White second moves.} O-O {[%emt 0:00:26]} 7. Qf3 {[%emt 0:02:33] next Qg3 is good for White.} d6 {[%emt 0:03:38]} 8. Bc4+ {[%emt 0:03:46] White has an edge.} Kh7 {[%emt 0:01:14]} 9. Nh3 {[%emt 0:05:07][%cal Oh3g5] [#] aiming for Ng5+!} e6 $146 {[%emt 0:06:30] [#] Loses the game.} (9... Qe8 $1 $14) ({Predecessor:} 9... Qe8 10. Bg5 c6 11. Bxf6 Bxf6 12. Ng5+ Kg7 13. Ne6+ Bxe6 14. Bxe6 Na6 15. g4 Nc7 {1-0 (36) Edouard,R (2640)-Dionisi,T (2392) Chartres 2017}) 10. Ng5+ $1 $18 {[%emt 0:25:43]} hxg5 {[%emt 0:01:04]} (10... Kh8 $142) 11. hxg5+ {[%emt 0:00:09]} Nh5 {[%emt 0:00:38]} 12. Rxh5+ {[%emt 0:00:49]} gxh5 {[%emt 0:01:07]} (12... Kg8 $142 13. Rh2 Nc6) 13. Qxh5+ {[%emt 0:00:03]} Kg8 {[%emt 0:00:12]} 14. g6 {[%emt 0:01:37][%csl Gg6][%cal Rh5h7] [#]} Rf6 {[%emt 0:10:31]} 15. Qh7+ {[%emt 0:15:25]} Kf8 {[%emt 0:00:08]} 16. Bh6 {[%emt 0:00:08]} Rxg6 {[%emt 0:00:30]} 17. Qxg6 {[%emt 0:01:58]} Bxh6 {[%emt 0:00:56]} 18. Qxh6+ {[%emt 0:00:04]} Kf7 {[%emt 0:01:19]} 19. Nd5 {[%emt 0:02:53][%cal Oe1c1] Intending 0-0-0! and mate.} Nd7 {[%emt 0:06:09]} 20. Qh7+ {[%emt 0:03:20]} Ke8 21. Qh8+ {[%emt 0:00:02]} Nf8 22. Nf6+ (22. Qh5+ $142 Ng6 23. Qxg6+ Kf8 24. Qh6+ Kg8 25. Nf6+ Kf7 26. Qh7+ Kxf6 27. Qh4+ Kf7 28. Qxd8) 22... Kf7 23. Qh7+ $4 {[%emt 0:00:02][%mdl 40960] Weighted Error Value: White=0.29 (precise) /Black=1.19. Loss on time!?} 1-0

[Event "12th WLC Weekend 2022"]
[Site "Eindhoven"]
[Date "2022.05.14"]
[Round "2.9"]
[White "Verweij, David"]
[Black "Roebers, Eline"]
[Result "0-1"]
[ECO "A04"]
[WhiteElo "1728"]
[BlackElo "2369"]
[Annotator "TA"]
[PlyCount "108"]
[EventDate "2022.05.13"]
[EventType "swiss"]
[EventCountry "NED"]
[SourceTitle "playchess.com"]
[Source "ChessBase"]
[SourceQuality "1"]
[TimeControl "5400+30"]

{[%evp 10,108,22,16,91,87,90,27,36,37,45,36,36,0,45,52,178,187,193,206,184,179,172,51,27,-31,-31,-31,-31,-31,-31,-31,-31,-31,-31,-37,-26,-31,-31,-31,-31,-37,-31,-31,-31,-31,-31,-39,-30,-30,-30,-30,-30,-162,-30,-49,-67,-162,-161,-148,-148,-154,-124,-139,-139,-661,-644,-620,-145,-145,-145,-156,-154,-419,-404,-388,-334,-775,-747,-727,-697,-1015,-988,-1069,-1025,-2170,-1902,-2539,-2332,-2327,-2207,-29989,-29990,-29990,-29991,-29991,-29992,-29992,-29993,-29993,-29994]} 1. Nf3 {[%emt 0:00:03]} f5 {[%emt 0:00:03]} 2. e4 {[%emt 0:01:41]} fxe4 {[%emt 0:00:09]} 3. Ng5 {[%emt 0:00:32]} Nf6 {[%emt 0:00:07]} 4. d3 {[%emt 0:00:22]} e3 {[%emt 0:00:04]} 5. Bxe3 {[%emt 0:03:40]} e5 {[%emt 0:03:38]} 6. d4 {[%emt 0:07:43][%cal Bd3d4,Bd4d5][%mdl 32]} Nc6 {[%emt 0:05:45] A04: Unusual lines after 1 Nf3 and King's Indian Attack.} (6... exd4 $1 $11 7. Bxd4 (7. Qxd4 Nc6 $11) 7... Nc6) 7. d5 $1 $16 {[%emt 0:05:30]} Ne7 {[%emt 0:00:54]} 8. c4 {[%emt 0:05:30]} (8. Nc3 $16) 8... Nf5 {[%emt 0:02:47] [#] White has an edge.} 9. Bd3 $146 {[%emt 0:05:15]} ({Predecessor:} 9. Bd2 Bc5 10. Bd3 d6 11. Nc3 O-O 12. O-O h6 13. Nge4 Bd4 14. Nxf6+ Qxf6 15. Ne4 {0-1 (47) Samsonov,E (1765)-Shibaev,F (2332) Armavir 2010}) 9... Nxe3 {[%emt 0:05:18]} 10. fxe3 {[%emt 0:01:48][%cal Od3h7]} Bb4+ $1 {[%emt 0:00:52]} 11. Nd2 {[%emt 0:02:33][%cal Bb1d2,Bd2e4,Be4f6][%mdl 32] Hoping for 0-0.} O-O {[%emt 0:01:05][%cal Oe5e4]} (11... Qe7 $5 {[%cal Re5e4]}) 12. O-O {[%emt 0:00:42][%cal Od5d6] Black must now prevent d6!} Qe7 {[%emt 0:08:41]} ({Black should try} 12... g6 $14) 13. Nde4 $18 {[%emt 0:05:16] Pair of Knights!} g6 {[%emt 0:12:58]} 14. Nxf6+ {[%emt 0:11:05]} Rxf6 {[%emt 0:00:05]} 15. Rxf6 {[%emt 0:00:17]} Qxf6 {[%emt 0:00:06]} 16. Qg4 {[%emt 0:05:58]} ({White must play} 16. Ne4 $18 Qe7 17. d6 Bxd6 18. Qf3) 16... Bc5 {[%emt 0:04:30]} 17. Qg3 {[%emt 0:02:48]} (17. Re1 $11 Be7 18. h4) 17... Qf4 $1 $15 {[%emt 0:01:15]} 18. Re1 {[%emt 0:09:13]} ({Much worse is} 18. Qxf4 exf4 19. Kf1 Bxe3 $17) 18... Qxg3 {[%emt 0:07:46]} 19. hxg3 {[%emt 0:00:05]} Be7 {[%emt 0:04:40]} 20. Ne4 {[%emt 0:06:03][%cal Od5d6]} d6 {[%emt 0:00:11]} 21. Rf1 {[%emt 0:01:29]} Bf5 {[%emt 0:01:48]} 22. Kf2 {[%emt 0:01:55]} a6 {[%emt 0:03:15]} 23. Ke2 {[%emt 0:03:37]} Kg7 {[%emt 0:02:15]} 24. a4 {[%emt 0:05:10]} a5 {[%emt 0:04:51]} 25. b3 {[%emt 0:00:51]} h5 {[%emt 0:01:12]} 26. Kd2 {[%emt 0:02:32]} Rh8 {[%emt 0:01:54]} 27. Rh1 {[%emt 0:01:08]} Bd7 {[%emt 0:02:43]} 28. Be2 {[%emt 0:01:56]} b6 {[%emt 0:04:32]} 29. Bf3 {[%emt 0:02:14]} Rf8 {[%emt 0:01:58]} 30. Rf1 {[%emt 0:01:00]} Bf5 {[%emt 0:00:00] ...Bxe4 is the strong threat.} 31. Kd3 {[%emt 0:01:11] [#]} (31. Nf2 $11) 31... Kh6 {[%emt 0:01:21]} (31... g5 $1 $19 {Strongly threatening ...g4.} 32. Rb1 g4) 32. Be2 {[%emt 0:00:18]} g5 {[%emt 0:03:19][%cal Bg6g5,Bg5g4][%mdl 32]} 33. Rh1 {[%emt 0:02:23] [#]} (33. g4 $15 hxg4 34. Rh1+ Kg7 35. g3) 33... g4 $1 $19 {[%emt 0:00:06]} 34. Rf1 {[%emt 0:00:24]} Kg6 {[%emt 0:00:05]} 35. Rg1 {[%emt 0:00:38]} Bxe4+ {[%emt 0:00:46]} 36. Kxe4 $17 {[%emt 0:00:06][%mdl 4096] Endgame KRB-KRB} Rf2 {[%emt 0:00:03]} 37. Kd3 {[%emt 0:00:09][%mdl 8192]} (37. Bd3 $17) 37... e4+ $19 {[%emt 0:01:21]} 38. Kd2 {[%emt 0:00:18]} Bf6 $2 {[%emt 0:00:19]} (38... Bg5 $19 {is more deadly.} 39. c5 dxc5) 39. Ke1 $17 {[%emt 0:00:24]} Rf5 {[%emt 0:00:04] Threatens to win with ...Bc3+. Black is more active.} 40. Bd1 {[%emt 0:00:29]} Be5 {[%emt 0:01:02]} 41. Bc2 $2 {[%emt 0:01:42]} (41. Ke2 $17) 41... Bxg3+ $19 {[%emt 0:00:20]} 42. Kd1 {[%emt 0:00:08]} Kg5 {[%emt 0:01:09]} 43. Kc1 $2 {[%emt 0:01:19]} (43. Bb1) 43... Bf2 {[%emt 0:00:28][%csl LRe3,LRg1]} 44. Rh1 {[%emt 0:00:32]} Bxe3+ {[%emt 0:00:05]} 45. Kd1 {[%emt 0:02:41]} Rf2 {[%emt 0:02:24] And now ...Rd2+ would win.} 46. Bxe4 {[%emt 0:00:00]} h4 {[%emt 0:00:44]} 47. Re1 {[%emt 0:00:00]} Kf4 {[%emt 0:00:25]} 48. Bg6 {[%emt 0:00:06]} Rd2+ {[%emt 0:00:18]} 49. Kc1 {[%emt 0:00:06]} Rxg2+ {[%emt 0:00:11]} 50. Kd1 {[%emt 0:00:15]} Rd2+ {[%emt 0:00:33] Black mates.} 51. Kc1 {[%emt 0:00:09]} Re2+ {[%emt 0:00:09]} 52. Kd1 {[%emt 0:00:06]} Rxe1+ {[%emt 0:00:03]} 53. Kxe1 {[%emt 0:00:05]} h3 {[%emt 0:00:04]} 54. Kf1 {[%emt 0:00:12]} g3 {[%emt 0:00:03] Quite a comeback for Black.  Weighted Error Value: White=0.79/Black=0.31} 0-1